fUSD/lending_fUSD_20251002
["ID","MTS","AMOUNT","RATE_DAILY","PERIOD"]
[388869098,1759444250148,-151.0,0.00017,2]
[388869099,1759444250157,-332.515467,0.00017,2]
[388869100,1759444250167,-151.695867,0.00017,2]
[388869101,1759444250177,-332.515467,0.00017,2]
[388869102,1759444250187,-1014.0,0.00017,2]
[388869103,1759444250196,-332.515467,0.00017,2]
[388869104,1759444250206,-332.515467,0.00017,2]
[388869105,1759444250215,-151.0,0.00017,2]
[388869106,1759444250225,-332.515467,0.00017,2]
[388869107,1759444250234,-332.515475,0.00017,2]
[388869108,1759444250243,-151.0,0.00017,2]
[388869109,1759444250253,-151.0,0.00017,2]
[388869110,1759444250262,-151.0,0.00017,2]
[388869111,1759444250271,-151.0,0.00017,2]
[388869112,1759444250280,-151.0,0.00017,2]
[388869113,1759444250289,-151.0,0.00017,2]
[388869114,1759444250299,-151.0,0.00017,2]
[388869115,1759444250309,-151.0,0.00017,2]
[388869116,1759444250320,-151.0,0.00017,2]
[388869117,1759444250329,-151.0,0.00017,2]
[388869118,1759444250339,-151.0,0.00017,2]
[388869119,1759444250349,-151.0,0.00017,2]
[388869120,1759444250359,-151.0,0.00017,2]
[388869121,1759444250371,-151.0,0.00017,2]
[388869122,1759444250381,-151.0,0.00017,2]
[388869123,1759444250390,-151.0,0.00017,2]
[388869124,1759444250400,-151.0,0.00017,2]
[388869125,1759444250410,-151.0,0.00017,2]
[388869126,1759444250421,-154.056326,0.00017,2]
[388869127,1759444250432,-28434.98998739,0.00017,2]
[388869128,1759444251337,-1067.86847001,0.00017,2]
[388869129,1759444251382,-1806.22920627,0.00017,2]
[388869130,1759444252570,-958.11451349,0.00016897,2]
[388869131,1759444252582,-41.88548651,0.00016897,2]
[388869132,1759444252592,-411.588477,0.00016997,2]
[388869133,1759444252602,-14.52805949,0.00016997,2]
[388869134,1759444252667,-601.82075351,0.00016997,2]
[388869135,1759444252677,-343.509303,0.00016997,2]
[388869136,1759444252686,-411.588477,0.00016997,2]
[388869137,1759444252697,-169.85650812,0.00017,2]
[388869138,1759444261094,200.0,0.0003215,120]
[388869140,1759444352837,834.87,0.00030136,120]
[388869141,1759444356456,150.0,9.4e-05,2]
[388869142,1759444356913,150.0,0.0001058,2]
[388869143,1759444357344,150.0,0.0001177,2]
[388869144,1759444357713,150.0,0.0001295,2]
[388869145,1759444358093,150.0,0.0001413,2]
[388869146,1759444358484,150.0,0.0001532,2]
[388869147,1759444359471,150.0,0.000165,2]
[388869148,1759444446851,3648.12,0.00030137,120]
[388869153,1759444562850,200.0,0.0003215,120]
[388869154,1759444580555,180.22,0.00016596,2]
[388869155,1759444609877,500.0,0.00025,60]
[388869156,1759444701489,159.63,0.00016045,2]
[388869163,1759444739583,500.0,0.0003215,120]
[388869165,1759444803781,1489.0,0.00027397,120]
[388869166,1759444804349,1489.0,0.00027671,120]
[388869167,1759444804574,1489.0,0.00027945,120]
[388869168,1759444804702,1489.0,0.00028219,120]
[388869169,1759444804784,1489.0,0.00028493,120]
[388869170,1759444804946,1489.0,0.00028767,120]
[388869171,1759444805014,1489.0,0.00029041,120]
[388869172,1759444805192,1489.0,0.00029315,120]
[388869173,1759444805441,1489.0,0.00029589,120]
[388869174,1759444806439,1489.0,0.00029863,120]
[388869175,1759444806576,1489.0,0.00030137,120]
[388869176,1759444862054,200.0,0.00032077,120]
[388869177,1759444877405,150.0,9.4e-05,2]
[388869178,1759444877821,150.0,0.0001058,2]
[388869179,1759444878250,150.0,0.0001177,2]
[388869180,1759444878703,150.0,0.0001295,2]
[388869181,1759444879172,150.0,0.0001413,2]
[388869182,1759444879598,150.0,0.0001532,2]
[388869183,1759444880101,150.0,0.000165,2]
[388869184,1759444895409,666.0,0.00015977,3]
[388869185,1759444988104,800.08,0.00030136,120]
[388869186,1759445009366,150.0,0.00030136,120]
[388869187,1759445014472,5000.0,0.00032077,60]
[388869188,1759445016707,200.0,0.0001594,2]
[388869189,1759445042869,4000.0,0.00032077,60]
[388869190,1759445053917,2686.17701941,0.00015938,2]
[388869191,1759445054284,4520.18298059,0.00015938,2]
[388869192,1759445069526,2676.3,0.00030137,120]
[388869193,1759445160867,200.0,0.00032078,120]
[388869194,1759445217827,165.38,0.00015912,2]
[388869196,1759445324050,366.62,0.00015931,2]
[388869197,1759445340643,1000.0,0.00016438,2]
[388869199,1759445343913,-168.0,0.00016641,2]
[388869200,1759445343938,-44.23573647,0.0001665,2]
[388869201,1759445348791,-195.0,0.00016645,2]
[388869202,1759445396884,150.0,9.4e-05,2]
[388869203,1759445397088,150.0,0.0001058,2]
[388869204,1759445397222,150.0,0.0001177,2]
[388869205,1759445397599,150.0,0.0001295,2]
[388869206,1759445397969,150.0,0.0001413,2]
[388869207,1759445398371,150.0,0.0001532,2]
[388869208,1759445399073,150.0,0.000165,2]
[388869209,1759445430734,264.14874404,0.00032078,60]
[388869234,1759445432094,-255.76426353,0.0001665,2]
[388869235,1759445432105,-250.0,0.00016654,2]
[388869236,1759445432116,-2000.0,0.00016659,2]
[388869237,1759445432125,-195.0,0.00016659,2]
[388869238,1759445432135,-1200.0,0.00016676,2]
[388869239,1759445432145,-300.0,0.00016677,2]
[388869240,1759445432154,-2500.0,0.00016677,2]
[388869241,1759445432164,-1118.47996494,0.00016677,2]
[388869242,1759445432173,-195.0,0.00016694,2]
[388869243,1759445432183,-166.0,0.00016712,2]
[388869244,1759445432192,-500.0,0.00016719,2]
[388869245,1759445432201,-2500.0,0.00016725,2]
[388869246,1759445432210,-887.9208976,0.00016749,2]
[388869247,1759445432220,-5306.1456579,0.00016784,2]
[388869248,1759445432230,-248.71531821,0.00016784,2]
[388869249,1759445432239,-550.0,0.00016799,2]
[388869250,1759445432249,-708.329,0.000168,2]
[388869251,1759445432259,-1000.0,0.000168,2]
[388869252,1759445432268,-1701.52310153,0.000168,2]
[388869253,1759445432277,-2500.0,0.000168,2]
[388869255,1759445432287,-524.20787915,0.000168,2]
[388869257,1759445432297,-1653.31681,0.0001683,2]
[388869259,1759445432307,-200.0,0.00016864,2]
[388869261,1759445432317,-500.0,0.00016876,2]
[388869263,1759445432327,-500.0,0.00016876,2]
[388869265,1759445432336,-500.0,0.00016876,2]
[388869267,1759445432346,-500.0,0.00016876,2]
[388869269,1759445432355,-500.0,0.00016876,2]
[388869271,1759445432366,-500.0,0.00016876,2]
[388869273,1759445432375,-500.0,0.00016876,2]
[388869275,1759445432385,-500.0,0.00016876,2]
[388869277,1759445432394,-500.0,0.00016876,2]
[388869279,1759445432403,-500.0,0.00016876,2]
[388869281,1759445432413,-500.0,0.00016876,2]
[388869283,1759445432422,-500.0,0.00016876,2]
[388869285,1759445432431,-500.0,0.00016876,2]
[388869287,1759445432440,-500.0,0.00016876,2]
[388869289,1759445432449,-322.6107,0.0001688,2]
[388869291,1759445432458,-646.65982734,0.0001688,2]
[388869294,1759445432468,-500.0,0.0001688,2]
[388869297,1759445432478,-500.0,0.0001688,2]
[388869299,1759445432487,-500.0,0.0001688,2]
[388869301,1759445432497,-500.0,0.0001688,2]
[388869304,1759445432506,-500.0,0.0001688,2]
[388869306,1759445432516,-500.0,0.0001688,2]
[388869307,1759445432526,-500.0,0.0001688,2]
[388869308,1759445432536,-500.0,0.0001688,2]
[388869309,1759445432545,-500.0,0.0001688,2]
[388869310,1759445432555,-500.0,0.0001688,2]
[388869311,1759445432565,-500.0,0.0001688,2]
[388869312,1759445432574,-500.0,0.0001688,2]
[388869313,1759445432584,-252.05472695,0.0001688,2]
[388869314,1759445432593,-297.71832794,0.0001688,2]
[388869315,1759445432603,-95125.84398674,0.0001688,2]
[388869316,1759445432613,-1542.05,0.00016887,2]
[388869317,1759445432623,-2040.6872,0.00016897,2]
[388869318,1759445432632,-5888.0,0.00016898,2]
[388869319,1759445432644,-219.70175144,0.00016899,2]
[388869320,1759445432653,-500.0,0.00016899,2]
[388869321,1759445432663,-319.98905065,0.00016899,2]
[388869322,1759445432673,-338.97873701,0.00016899,2]
[388869323,1759445432683,-500.0,0.00016899,2]
[388869324,1759445432695,-62210.2433,0.000169,2]
[388869325,1759445432707,-1000.0,0.000169,2]
[388869326,1759445432718,-1000.0,0.000169,2]
[388869327,1759445432728,-1653.31682,0.0001695,2]
[388869328,1759445432738,-168.0,0.00016968,2]
[388869329,1759445432747,-1425.0,0.00016972,2]
[388869330,1759445432757,-2265.062,0.0001699,2]
[388869331,1759445432766,-4503.82,0.0001699,2]
[388869332,1759445432778,-172.2960413,0.00016997,2]
[388869333,1759445432788,-11304.6447894,0.00016997,2]
[388869334,1759445432798,-5124.5993217,0.00016997,2]
[388869335,1759445432808,-170.7318392,0.00016997,2]
[388869336,1759445432818,-151.0,0.00016997,2]
[388869337,1759445432828,-69323.87658633,0.00017,2]
[388869338,1759445432839,-28590.77652166,0.00017,2]
[388869339,1759445432850,-250.0,0.00017,2]
[388869340,1759445432862,-433.88429721,0.00017,2]
[388869341,1759445432874,-594.10064367,0.00017,2]
[388869342,1759445432883,-1000.0,0.00017,2]
[388869343,1759445432892,-2156.39585601,0.00017,2]
[388869344,1759445432903,-168.0,0.00017072,2]
[388869345,1759445432913,-1000.0,0.000171,2]
[388869346,1759445432922,-860.13847112,0.000171,2]
[388869347,1759445432932,-1542.05,0.00017161,2]
[388869348,1759445432944,-153.68,0.0001717,2]
[388869349,1759445432954,-678.56,0.000172,2]
[388869350,1759445432963,-473.63,0.000172,2]
[388869351,1759445432973,-1000.0,0.000172,2]
[388869352,1759445432983,-473.63,0.000172,2]
[388869353,1759445432992,-473.63,0.000172,2]
[388869354,1759445433002,-1653.31682,0.0001721,2]
[388869355,1759445433011,-168.0,0.00017231,2]
[388869356,1759445433021,-340.0,0.00017233,2]
[388869357,1759445433030,-2000.0,0.000173,2]
[388869358,1759445433039,-335.56,0.000173,2]
[388869359,1759445433049,-168.0,0.00017331,2]
[388869360,1759445433059,-1701.52310151,0.00017357,2]
[388869361,1759445433069,-473.63,0.00017358,2]
[388869362,1759445433079,-300.0,0.00017359,2]
[388869363,1759445433090,-473.63,0.000174,2]
[388869364,1759445433275,-473.63,0.000174,2]
[388869365,1759445433361,-1542.05,0.00017435,2]
[388869366,1759445433371,-1653.31682,0.0001745,2]
[388869367,1759445433381,-6026.56564388,0.000175,2]
[388869368,1759445433391,-210.43601146,0.00017535,2]
[388869369,1759445433402,-260.88,0.00017557,2]
[388869370,1759445433412,-2720.0,0.0001762,2]
[388869371,1759445433422,-860.13847109,0.00017624,2]
[388869372,1759445433431,-908.49,0.00017636,2]
[388869373,1759445433441,-510.99,0.00017646,2]
[388869374,1759445433451,-168.0,0.00017657,2]
[388869375,1759445433461,-150.0,0.0001769,2]
[388869376,1759445433470,-1653.31682,0.000177,2]
[388869377,1759445433481,-168.0,0.00017708,2]
[388869378,1759445433490,-1542.05,0.00017709,2]
[388869379,1759445433501,-153.68,0.00017737,2]
[388869380,1759445433510,-2720.0,0.00017803,2]
[388869381,1759445433519,-463.79917266,0.00017811,2]
[388869382,1759445433529,-935.0,0.00017908,2]
[388869383,1759445433539,-1701.52310151,0.00017915,2]
[388869384,1759445433548,-168.0,0.00017935,2]
[388869385,1759445433558,-1653.31682,0.0001795,2]
[388869386,1759445433568,-180.22,0.00017966,2]
[388869387,1759445433578,-2720.0,0.00017975,2]
[388869388,1759445433588,-1542.05,0.00017983,2]
[388869389,1759445433597,-295.27245785,0.00018,2]
[388869390,1759445433606,-7906.0,0.00018,2]
[388869391,1759445433616,-150.0,0.00018,2]
[388869392,1759445433626,-150.0,0.00018,2]
[388869393,1759445433635,-150.0,0.00018,2]
[388869394,1759445433645,-150.0,0.00018,2]
[388869395,1759445433654,-1600.0,0.00018102,2]
[388869396,1759445433664,-3028.0,0.00018115,2]
[388869397,1759445433674,-15296.37041961,0.00018133,2]
[388869398,1759445433684,-860.13847109,0.00018148,2]
[388869399,1759445433693,-164.09830719,0.00018149,2]
[388869400,1759445433703,-257.91778498,0.00018153,2]
[388869401,1759445433718,-334.5472959,0.00018249,2]
[388869402,1759445433729,-1542.05,0.00018257,2]
[388869403,1759445433739,-153.68,0.00018304,2]
[388869404,1759445433748,-2500.0,0.00018305,2]
[388869405,1759445433758,-2000.0,0.00018305,2]
[388869406,1759445433767,-193.0,0.00018305,2]
[388869407,1759445433777,-300.0,0.00018305,2]
[388869408,1759445433786,-300.0,0.00018305,2]
[388869409,1759445433796,-2000.0,0.00018305,2]
[388869410,1759445433806,-195.0,0.00018305,2]
[388869411,1759445433815,-300.0,0.00018305,2]
[388869412,1759445433825,-2000.0,0.00018305,2]
[388869413,1759445433834,-195.0,0.00018305,2]
[388869414,1759445433844,-1680.0,0.0001831,2]
[388869415,1759445433854,-195.0,0.00018315,2]
[388869416,1759445433867,-250.0,0.00018315,2]
[388869417,1759445433877,-300.0,0.00018315,2]
[388869418,1759445433886,-300.0,0.00018315,2]
[388869419,1759445433896,-5000.0,0.00018333,2]
[388869420,1759445433906,-1613.78,0.0001835,2]
[388869421,1759445433915,-473.55,0.0001835,2]
[388869422,1759445433925,-2500.0,0.00018384,2]
[388869423,1759445433937,-2500.0,0.00018384,2]
[388869424,1759445433947,-250.0,0.00018384,2]
[388869425,1759445433956,-300.0,0.00018384,2]
[388869426,1759445433966,-300.0,0.00018384,2]
[388869427,1759445433975,-500.0,0.00018384,2]
[388869428,1759445433985,-160.73597816,0.000184,2]
[388869429,1759445433994,-4846.0,0.0001842,2]
[388869430,1759445434003,-2045.0,0.0001842,2]
[388869431,1759445434012,-1264.0,0.0001842,2]
[388869432,1759445434022,-788.0,0.0001842,2]
[388869433,1759445434032,-3399.0,0.0001842,2]
[388869434,1759445434041,-1305.0,0.0001842,2]
[388869435,1759445434050,-1583.0,0.0001842,2]
[388869436,1759445434060,-603.0,0.0001842,2]
[388869437,1759445434069,-570.0,0.0001842,2]
[388869438,1759445434078,-4236.0,0.0001842,2]
[388869439,1759445434088,-1180.0,0.0001842,2]
[388869440,1759445434097,-815.0,0.0001842,2]
[388869441,1759445434107,-440.091,0.0001842,2]
[388869442,1759445434117,-4931.81,0.0001842,2]
[388869443,1759445434127,-4114.0,0.0001842,2]
[388869444,1759445434136,-616.25957772,0.00018427,2]
[388869445,1759445434146,-510.99,0.00018448,2]
[388869446,1759445434156,-604.92745074,0.00018472,2]
[388869447,1759445434218,-500.0,0.00016876,2]
[388869448,1759445434227,-442.59944755,0.00016876,2]
[388869449,1759445434293,-57.40055245,0.00016876,2]
[388869450,1759445434302,-500.0,0.00016876,2]
[388869451,1759445434312,-500.0,0.00016876,2]
[388869452,1759445434322,-891.78586192,0.00018472,2]
[388869453,1759445434333,-204.80978885,0.00018472,2]
[388869454,1759445434342,-4503.82,0.0001849,2]
[388869455,1759445434351,-17769.76327059,0.000185,2]
[388869456,1759445434362,-76328.33825628,0.000185,2]
[388869457,1759445434373,-23414.66823518,0.000185,2]
[388869458,1759445437875,-500.0,0.00016876,2]
[388869459,1759445437884,-180.68911547,0.00016876,2]
[388869460,1759445437896,-319.31088453,0.00016876,2]
[388869461,1759445437907,-500.0,0.00016876,2]
[388869462,1759445437917,-500.0,0.00016876,2]
[388869463,1759445437927,-127.51879415,0.00016876,2]
[388869464,1759445438015,-372.48120585,0.00016876,2]
[388869465,1759445438024,-500.0,0.00016876,2]
[388869466,1759445438034,-500.0,0.00016876,2]
[388869467,1759445438045,-500.0,0.00016876,2]
[388869468,1759445438055,-500.0,0.00016876,2]
[388869469,1759445438065,-500.0,0.00016876,2]
[388869470,1759445438075,-384.97113848,0.00016876,2]
[388869471,1759445438086,-500.0,0.00016876,2]
[388869472,1759445438096,-500.0,0.00016876,2]
[388869473,1759445438107,-500.0,0.00016876,2]
[388869474,1759445438119,-621.0,0.0001842,2]
[388869475,1759445438129,-1144.73842135,0.000185,2]
[388869476,1759445438160,-885.54739753,0.000185,2]
[388869509,1759445440442,-601.35075,0.000185,2]
[388869515,1759445440485,-188037.88810875,0.000185,2]
[388869517,1759445440494,-23519.7666132,0.000185,2]
[388869519,1759445440504,-151.0,0.000185,2]
[388869521,1759445440513,-171.050474,0.000185,2]
[388869523,1759445440522,-171.050474,0.000185,2]
[388869525,1759445440532,-171.050474,0.000185,2]
[388869526,1759445440541,-171.050474,0.000185,2]
[388869528,1759445440550,-151.0,0.000185,2]
[388869530,1759445440560,-151.0,0.000185,2]
[388869531,1759445440569,-151.0,0.000185,2]
[388869532,1759445440578,-151.0,0.000185,2]
[388869533,1759445440587,-151.0,0.000185,2]
[388869534,1759445440596,-151.0,0.000185,2]
[388869535,1759445440605,-151.0,0.000185,2]
[388869536,1759445440615,-151.0,0.000185,2]
[388869537,1759445440629,-151.0,0.000185,2]
[388869538,1759445440638,-151.0,0.000185,2]
[388869539,1759445440647,-151.0,0.000185,2]
[388869540,1759445440657,-151.0,0.000185,2]
[388869541,1759445440666,-264.999508,0.000185,2]
[388869542,1759445440675,-154.562114,0.000185,2]
[388869543,1759445440684,-151.0,0.000185,2]
[388869544,1759445440693,-151.0,0.000185,2]
[388869545,1759445440702,-151.0,0.000185,2]
[388869546,1759445440711,-151.0,0.000185,2]
[388869547,1759445440719,-151.0,0.000185,2]
[388869548,1759445440728,-151.0,0.000185,2]
[388869549,1759445440737,-152.808935,0.000185,2]
[388869550,1759445440746,-151.0,0.000185,2]
[388869551,1759445440754,-150.0,0.000185,2]
[388869552,1759445440763,-1542.05,0.00018531,2]
[388869553,1759445440772,-305.0,0.00018533,2]
[388869554,1759445440781,-81479.94,0.00018533,2]
[388869555,1759445440791,-293.48,0.00018533,4]
[388869556,1759445440801,-150.99,0.00018533,2]
[388869557,1759445440811,-12904.84,0.00018533,2]
[388869558,1759445440820,-999.99,0.00018533,2]
[388869559,1759445440830,-1524.25,0.00018533,2]
[388869560,1759445440845,-5397.58,0.00018533,2]
[388869561,1759445440858,-1443.13,0.00018533,2]
[388869562,1759445440870,-7842.33,0.00018533,2]
[388869563,1759445440880,-150.99,0.00018533,2]
[388869564,1759445440889,-165.38,0.00018564,2]
[388869565,1759445440899,-1000.0,0.0001863,2]
[388869566,1759445440908,-501.28970636,0.00018655,2]
[388869567,1759445440919,-860.13847109,0.00018672,2]
[388869568,1759445440929,-463.79917266,0.00018722,2]
[388869569,1759445440940,-300.0,0.00018729,2]
[388869570,1759445440950,-1542.05,0.00018805,2]
[388869571,1759445440959,-270.0,0.0001887,2]
[388869572,1759445440969,-153.68,0.00018871,2]
[388869573,1759445440979,-545.29,0.00018875,2]
[388869574,1759445440988,-150.0,0.00018875,2]
[388869575,1759445440997,-3028.0,0.00018895,2]
[388869576,1759445441007,-545.29,0.00018957,2]
[388869577,1759445441016,-150.0,0.00018957,2]
[388869578,1759445441025,-150.0,0.00018957,2]
[388869579,1759445441035,-340.1,0.00018957,2]
[388869580,1759445441044,-412.48,0.00018957,2]
[388869581,1759445441054,-175.59,0.00018957,2]
[388869582,1759445441063,-545.29,0.00018957,2]
[388869583,1759445441072,-167.81,0.00018957,2]
[388869584,1759445441081,-150.0,0.00018957,2]
[388869585,1759445441090,-150.0,0.00018957,2]
[388869586,1759445441099,-370.49393606,0.00018992,2]
[388869587,1759445441108,-917.0,0.00019,2]
[388869588,1759445441118,-160.0,0.00019,2]
[388869589,1759445441128,-247.08721675,0.00019,2]
[388869590,1759445441137,-101870.28088326,0.00019,2]
[388869591,1759445441146,-1818.03506066,0.00019,2]
[388869592,1759445441156,-300.0,0.00019,2]
[388869593,1759445441165,-150.0,0.00019,2]
[388869594,1759445441174,-150.0,0.00019,2]
[388869595,1759445441183,-150.0,0.00019,2]
[388869596,1759445441193,-1701.52310151,0.0001903,2]
[388869597,1759445441202,-1542.05,0.00019079,2]
[388869598,1759445441211,-215.0,0.00019084,2]
[388869599,1759445441220,-293.5443736,0.000191,2]
[388869600,1759445441229,-194.91238722,0.000191,2]
[388869601,1759445441239,-2522.4072022,0.00019152,2]
[388869602,1759445441248,-1143.4526673,0.00019152,2]
[388869603,1759445441258,-151.0,0.00019152,2]
[388869604,1759445441267,-151.0,0.00019152,2]
[388869605,1759445441277,-151.0,0.00019152,2]
[388869606,1759445441286,-151.0,0.00019152,2]
[388869607,1759445441295,-151.0,0.00019152,2]
[388869608,1759445441304,-151.0,0.00019152,2]
[388869609,1759445441315,-151.0,0.00019152,2]
[388869610,1759445441325,-260.638681,0.00019152,2]
[388869611,1759445441334,-167.093957,0.00019152,2]
[388869612,1759445441344,-260.638681,0.00019152,2]
[388869613,1759445441354,-260.638681,0.00019152,2]
[388869614,1759445441363,-151.0,0.00019152,2]
[388869615,1759445441372,-260.638681,0.00019152,2]
[388869616,1759445441381,-151.0,0.00019152,2]
[388869617,1759445441391,-151.0,0.00019152,2]
[388869618,1759445441400,-151.0,0.00019152,2]
[388869619,1759445441411,-247.540503,0.00019152,2]
[388869620,1759445441420,-348.956712,0.00019152,2]
[388869621,1759445441430,-348.956712,0.00019152,2]
[388869622,1759445441442,-348.956712,0.00019152,2]
[388869623,1759445441453,-348.956712,0.00019152,2]
[388869624,1759445441462,-151.0,0.00019152,2]
[388869625,1759445441471,-151.0,0.00019152,2]
[388869626,1759445441483,-151.0,0.00019152,2]
[388869627,1759445441493,-151.0,0.00019152,2]
[388869628,1759445441502,-151.0,0.00019152,2]
[388869629,1759445441511,-151.0,0.00019152,2]
[388869630,1759445441521,-151.0,0.00019152,2]
[388869631,1759445441531,-151.0,0.00019152,2]
[388869632,1759445441540,-151.0,0.00019152,2]
[388869633,1759445441550,-151.0,0.00019152,2]
[388869634,1759445441560,-151.0,0.00019152,2]
[388869635,1759445441569,-197.848552,0.00019152,2]
[388869636,1759445441578,-151.0,0.00019152,2]
[388869637,1759445441588,-151.0,0.00019152,2]
[388869638,1759445441600,-151.0,0.00019152,2]
[388869639,1759445441610,-151.0,0.00019152,2]
[388869640,1759445441620,-151.0,0.00019152,2]
[388869641,1759445441630,-151.0,0.00019152,2]
[388869642,1759445441639,-151.0,0.00019152,2]
[388869643,1759445441649,-162.110232,0.00019152,2]
[388869644,1759445441658,-163.841851,0.00019152,2]
[388869645,1759445441667,-163.841851,0.00019152,2]
[388869646,1759445441676,-157.174103,0.00019152,2]
[388869647,1759445441685,-163.841851,0.00019152,2]
[388869648,1759445441694,-163.841851,0.00019152,2]
[388869649,1759445441703,-151.0,0.00019152,2]
[388869650,1759445441713,-151.0,0.00019152,2]
[388869651,1759445441722,-151.0,0.00019152,2]
[388869652,1759445441732,-151.0,0.00019152,2]
[388869653,1759445441741,-151.0,0.00019152,2]
[388869654,1759445441750,-151.0,0.00019152,2]
[388869655,1759445441759,-151.0,0.00019152,2]
[388869656,1759445441768,-151.0,0.00019152,2]
[388869657,1759445441777,-151.0,0.00019152,2]
[388869658,1759445441786,-151.0,0.00019152,2]
[388869659,1759445441796,-151.0,0.00019152,2]
[388869660,1759445441805,-151.0,0.00019152,2]
[388869661,1759445441814,-151.0,0.00019152,2]
[388869662,1759445441823,-151.0,0.00019152,2]
[388869663,1759445441833,-151.0,0.00019152,2]
[388869664,1759445441843,-151.0,0.00019152,2]
[388869665,1759445441852,-151.0,0.00019152,2]
[388869666,1759445441863,-151.0,0.00019152,2]
[388869667,1759445441873,-230.659036,0.00019152,2]
[388869668,1759445441883,-151.0,0.00019152,2]
[388869669,1759445441892,-151.0,0.00019152,2]
[388869670,1759445441902,-151.0,0.00019152,2]
[388869671,1759445441912,-151.0,0.00019152,2]
[388869672,1759445441921,-151.0,0.00019152,2]
[388869673,1759445441931,-151.0,0.00019152,2]
[388869674,1759445441944,-151.0,0.00019152,2]
[388869675,1759445441955,-151.0,0.00019152,2]
[388869676,1759445441964,-151.0,0.00019152,2]
[388869677,1759445441973,-151.0,0.00019152,2]
[388869678,1759445441983,-151.0,0.00019152,2]
[388869679,1759445441993,-151.0,0.00019152,2]
[388869680,1759445442002,-151.0,0.00019152,2]
[388869681,1759445442011,-151.0,0.00019152,2]
[388869682,1759445442022,-151.0,0.00019152,2]
[388869683,1759445442031,-151.0,0.00019152,2]
[388869684,1759445442041,-151.0,0.00019152,2]
[388869685,1759445442050,-761.191995,0.00019152,2]
[388869686,1759445442060,-761.191995,0.00019152,2]
[388869687,1759445442070,-151.0,0.00019152,2]
[388869688,1759445442079,-761.191995,0.00019152,2]
[388869689,1759445442089,-761.191995,0.00019152,2]
[388869690,1759445442098,-151.0,0.00019152,2]
[388869691,1759445442107,-151.0,0.00019152,2]
[388869692,1759445442116,-151.0,0.00019152,2]
[388869693,1759445442127,-151.0,0.00019152,2]
[388869694,1759445442136,-151.0,0.00019152,2]
[388869695,1759445442145,-151.0,0.00019152,2]
[388869696,1759445442155,-151.0,0.00019152,2]
[388869697,1759445442166,-151.0,0.00019152,2]
[388869698,1759445442175,-170.620929,0.00019152,2]
[388869699,1759445442184,-151.0,0.00019152,2]
[388869700,1759445442193,-151.0,0.00019152,2]
[388869701,1759445442202,-151.0,0.00019152,2]
[388869702,1759445442212,-151.0,0.00019152,2]
[388869703,1759445442221,-151.0,0.00019152,2]
[388869704,1759445442231,-151.0,0.00019152,2]
[388869705,1759445442240,-151.0,0.00019152,2]
[388869706,1759445442250,-151.0,0.00019152,2]
[388869707,1759445442260,-151.0,0.00019152,2]